bitfinex-derivatives/quotes_ETHF0:USTF0_20250114
["timestamp","ask_amount","ask_price","bid_price","bid_amount"]
[1736877607993,3.94390018,3214.7,3214.6,0.31125]
[1736877608193,3.94390018,3214.7,3214.6,41.11125]
[1736877609394,3.94390018,3214.7,3213.9,3.2078]
[1736877609701,2.76911314,3214.2,3214.1,0.31128]
[1736877609902,2.45781314,3214.2,3213.5,3.2078]
[1736877610098,2.76915314,3213.7,3213.6,0.31134]
[1736877610298,2.45781314,3213.7,3213.6,0.31134]
[1736877610493,6.02273755,3213.7,3213.6,41.11134]
[1736877612097,3.56492441,3213.7,3213.6,41.11134]
[1736877612396,3.42511511,3214.0,3213.6,40.8]
[1736877612603,3.42511511,3213.9,3213.8,0.31132]
[1736877612893,3.42511511,3213.9,3213.6,40.8]
[1736877612894,1.2651,3214.1,3213.6,40.8]
[1736877613109,1.2651,3214.1,3214.0,0.3113]
[1736877613491,4.7944217,3214.1,3214.0,0.3113]
[1736877613998,0.31133,3213.9,3213.8,0.31131]
[1736877614201,2.76914314,3213.9,3213.8,0.31131]
[1736877614398,6.29846484,3213.9,3213.8,0.31131]
[1736877614897,5.98713484,3213.9,3213.8,0.31131]
[1736877615103,3.5293217,3213.9,3213.8,0.31131]
[1736877615295,3.8406317,3213.9,3213.8,0.31131]
[1736877615495,4.3283317,3213.9,3213.8,0.31131]
[1736877615699,0.79901,3213.9,3213.8,0.31131]
[1736877615897,4.28066199,3213.9,3213.8,0.31131]
[1736877616205,3.96935199,3213.9,3213.8,0.31131]
[1736877616603,0.4877,3213.9,3213.8,0.31131]
[1736877616806,3.2078,3214.4,3214.3,0.31128]
[1736877617115,1.296,3214.6,3214.3,0.31128]
[1736877617402,1.296,3214.6,3214.5,0.31126]
[1736877617403,1.60725,3214.6,3214.5,0.31126]
[1736877617608,0.31126,3214.5,3214.4,41.11126]
[1736877617908,5.90511448,3214.5,3214.4,41.11126]
[1736877618103,2.45781314,3214.5,3214.4,41.11126]
[1736877618305,6.21637448,3214.5,3214.4,41.11126]
[1736877618705,5.90511448,3214.5,3214.4,41.11126]
[1736877618898,3.44730134,3214.5,3214.4,41.11126]
[1736877619096,1.4397,3214.7,3214.6,0.31125]
[1736877619497,4.91803551,3214.7,3214.6,0.31125]
[1736877619701,4.43353551,3214.7,3214.6,0.31125]
[1736877621909,0.31126,3214.5,3214.4,44.31906]
[1736877622105,0.31126,3214.5,3214.4,3.51906]
[1736877622106,2.45781314,3214.5,3214.4,3.51906]
[1736877622307,0.31128,3214.3,3214.2,0.31127]
[1736877622707,3.60842049,3214.3,3214.2,41.11127]
[1736877623909,3.29714049,3214.3,3214.2,41.11127]
[1736877625007,0.31125,3214.6,3214.5,0.31125]
[1736877625405,3.7339134,3214.6,3214.5,0.31125]
[1736877625615,0.31127,3214.4,3214.3,0.31126]
[1736877626306,3.55973262,3214.4,3214.3,0.31126]
[1736877626605,3.24846262,3214.4,3214.3,0.31126]
[1736877627007,3.46701105,3214.5,3214.2,40.8]
[1736877627207,3.46701105,3214.5,3214.4,0.31127]
[1736877627208,3.77827105,3214.5,3214.4,0.31127]
[1736877627512,0.31126,3214.5,3214.4,0.31127]
[1736877627712,3.90990568,3214.5,3214.4,0.31127]
[1736877628105,3.90990568,3214.5,3214.3,0.31127]
[1736877628106,0.31128,3214.4,3214.3,0.31127]
[1736877628505,3.58347238,3214.4,3214.3,0.31127]
[1736877628712,0.31128,3214.3,3214.2,41.11128]
[1736877629107,3.58347238,3214.3,3214.2,40.8]
[1736877630115,6.79127238,3214.3,3214.2,40.8]
[1736877631417,0.3113,3214.0,3213.9,0.31131]
[1736877631811,3.61217712,3214.0,3213.9,41.11131]
[1736877632012,4.56497712,3214.0,3213.9,41.11131]
[1736877634512,4.25367712,3214.0,3213.9,41.11131]
[1736877634712,0.31125,3214.6,3214.5,0.31125]
[1736877634912,1.24785,3214.6,3214.5,0.31125]
[1736877635117,4.51752305,3214.6,3214.5,0.31125]
[1736877635715,4.51752305,3214.6,3214.5,41.11125]
[1736877636428,3.58092305,3214.6,3214.5,41.11125]
[1736877638827,0.31117,3215.4,3214.5,40.8]
[1736877639135,0.31117,3215.4,3215.3,0.31118]
[1736877639426,3.6963413,3215.4,3215.3,0.31118]
[1736877640220,3.3851713,3215.4,3215.0,3.2078]
[1736877640415,0.9544,3215.3,3215.0,3.2078]
[1736877640615,1.26558,3215.3,3215.0,3.2078]
[1736877640818,0.9544,3215.3,3215.2,0.31119]
[1736877641023,1.26558,3215.3,3215.2,41.11119]
[1736877641225,4.34167939,3215.3,3215.2,41.11119]
[1736877642026,4.65285939,3215.3,3215.2,41.11119]
[1736877642330,4.34167939,3215.3,3215.2,41.11119]
[1736877642628,0.31122,3215.0,3214.9,0.31121]
[1736877642933,5.81264096,3215.0,3214.9,0.31121]
[1736877643124,5.81264096,3215.0,3214.9,41.11121]
[1736877643125,3.35482782,3215.0,3214.9,41.11121]
[1736877645633,3.2078,3215.5,3215.4,0.31117]
[1736877645829,3.51896,3215.5,3215.4,0.31117]
[1736877646133,3.35342825,3215.5,3215.4,0.31117]
[1736877646537,3.35342825,3215.6,3215.3,0.77795]
[1736877646739,0.9168,3215.7,3215.6,0.31115]
[1736877646932,1.60612,3215.9,3215.3,0.77795]
[1736877647130,3.59176894,3215.6,3215.5,0.31116]
[1736877647340,3.59176894,3215.8,3215.7,0.31114]
[1736877647630,0.93060604,3216.0,3215.9,0.31112]
[1736877647829,0.31096,3217.7,3217.4,0.31097]
[1736877648030,2.45781314,3217.9,3217.0,3.2078]
[1736877648244,3.52573385,3217.6,3217.5,40.8]
[1736877648438,3.52573385,3217.8,3217.5,41.11097]
[1736877648634,2.76877314,3217.6,3217.5,40.8]
[1736877649030,6.01875579,3217.6,3217.5,41.11097]
[1736877649240,0.77744,3217.5,3216.4,3.2078]
[1736877649440,0.31104,3216.8,3216.1,3.2078]
[1736877649639,0.9449,3216.7,3216.6,0.31105]
[1736877649833,0.9449,3216.7,3216.5,0.31106]
[1736877650029,0.9449,3216.7,3216.5,3.2078]
[1736877650234,0.9449,3216.7,3216.6,40.8]
[1736877650437,1.25594,3216.7,3216.6,40.8]
[1736877650738,0.9449,3216.7,3216.6,40.8]
[1736877651636,10.05596698,3216.7,3216.1,3.2078]
[1736877651934,10.05596698,3216.7,3216.1,44.0078]
[1736877651935,7.59815384,3216.7,3216.1,44.0078]
[1736877652134,0.31106,3216.6,3216.4,0.31107]
[1736877652541,3.54384266,3216.5,3216.1,44.0078]
[1736877652745,0.31108,3216.4,3216.3,0.31108]
[1736877652936,0.31107,3216.5,3216.3,0.31108]
[1736877653337,3.31266558,3216.4,3216.3,0.31108]
[1736877653735,3.31266558,3216.4,3216.1,44.0078]
[1736877653943,0.31109,3216.2,3216.1,40.8]
[1736877654335,3.58989045,3216.2,3216.1,40.8]
[1736877654934,0.9449,3216.7,3216.1,40.8]
[1736877655146,3.2078,3217.1,3216.4,3.2078]
[1736877655348,0.31102,3217.0,3216.9,0.31102]
[1736877655542,0.31102,3217.0,3216.8,0.31103]
[1736877655543,3.66093218,3217.0,3216.8,0.31103]
[1736877655844,3.66093218,3217.0,3216.9,0.31102]
[1736877656739,3.34991218,3217.0,3216.9,0.31102]
[1736877656942,0.31098,3217.4,3217.3,0.31099]
[1736877657140,0.5,3217.3,3216.8,3.2078]
[1736877657338,4.34624947,3217.3,3216.8,3.2078]
[1736877657539,4.03525947,3217.3,3216.8,3.2078]
[1736877657743,4.03525947,3217.3,3217.2,0.31099]
[1736877657944,4.34624947,3217.3,3217.2,0.31099]
[1736877658249,0.31101,3217.1,3217.0,0.31101]
[1736877658442,4.03525947,3217.3,3216.8,3.2078]
[1736877658641,0.311,3217.2,3217.1,0.311]
[1736877658843,3.8923749,3217.2,3217.1,41.111]
[1736877659443,3.8923749,3217.2,3217.1,0.311]
[1736877660044,3.5813749,3217.2,3216.8,3.2078]
[1736877660345,0.31104,3216.8,3216.7,0.31104]
[1736877660646,2.45781314,3217.1,3216.6,0.31104]
[1736877660647,0.31101,3217.0,3216.6,0.31104]
[1736877660946,0.485,3216.7,3216.6,0.31104]
[1736877661853,3.7343251,3216.7,3216.6,0.31104]
[1736877664251,3.7343251,3216.7,3216.6,40.8]
[1736877664454,7.7242651,3216.7,3216.6,40.8]
[1736877664661,7.7242651,3216.7,3215.5,3.2078]
[1736877664662,0.31115,3215.6,3215.5,3.2078]
[1736877664960,2.45781314,3215.8,3215.0,3.2078]
[1736877665252,2.45781314,3215.8,3215.5,40.8]
[1736877665253,0.497,3215.7,3215.5,40.8]
[1736877665449,3.496164,3215.7,3215.6,0.31115]
[1736877665647,0.31111,3216.0,3215.9,0.31112]
[1736877666048,0.80811,3216.1,3216.0,0.31111]
[1736877666456,4.12556557,3216.1,3216.0,0.31111]
[1736877666751,0.31112,3216.0,3215.9,0.31112]
[1736877666953,0.31115,3215.7,3215.6,0.31114]
[1736877667150,0.31114,3215.8,3215.7,0.31113]
[1736877667450,0.31112,3215.9,3215.8,0.31113]
[1736877667653,0.31112,3215.9,3215.5,40.8]
[1736877667654,0.31112,3216.0,3215.9,0.31111]
[1736877668048,3.85665252,3216.0,3215.9,0.31111]
[1736877669249,3.54553252,3216.0,3215.9,0.31111]
[1736877669449,0.497,3216.1,3215.6,0.77787]
[1736877669755,0.497,3216.1,3216.0,0.31111]
[1736877670152,5.66561314,3216.8,3216.0,3.2078]
[1736877670456,0.81129141,3216.6,3216.5,0.31106]
[1736877670651,0.50024141,3216.6,3216.5,40.8]
[1736877670948,4.26913179,3216.6,3216.5,40.8]
[1736877671153,4.26913179,3216.6,3216.0,3.2078]
[1736877671154,0.3111,3216.1,3216.0,3.5189]
[1736877671351,0.31112,3216.0,3215.9,0.31111]
[1736877671545,0.4973,3216.0,3215.9,0.31111]
[1736877671750,0.4973,3216.0,3215.8,0.31113]
[1736877671751,0.31113,3215.9,3215.8,0.31113]
[1736877672045,0.31113,3215.9,3215.4,3.98573]
[1736877672046,0.31116,3215.5,3215.4,3.51896]
[1736877672452,3.48867697,3215.5,3215.4,3.51897]
[1736877672648,0.4775,3215.8,3215.4,3.2078]
[1736877672868,0.31114,3215.7,3215.6,0.31114]
[1736877673056,3.35194028,3215.7,3215.4,3.2078]
[1736877673256,0.31116,3215.6,3215.5,0.31115]
[1736877673656,0.31118,3215.4,3215.3,0.31117]
[1736877673861,0.78027,3215.5,3215.4,0.31117]
[1736877674055,3.49900693,3215.4,3215.0,3.2078]
[1736877674257,0.3112,3215.1,3215.0,3.2078]
[1736877674555,0.3112,3215.1,3215.0,44.31901]
[1736877674556,3.53488419,3215.1,3215.0,44.31901]
[1736877674857,0.31119,3215.2,3215.0,44.0078]
[1736877675052,0.31119,3215.2,3215.1,0.3112]
[1736877675257,3.53488419,3215.2,3215.1,0.3112]
[1736877675661,3.36938027,3215.3,3215.0,41.57802]
[1736877675863,1.294,3215.4,3215.2,0.31119]
[1736877676054,7.89913341,3215.4,3215.0,40.8]
[1736877676363,2.76901314,3215.1,3215.0,40.8]
[1736877676662,6.33569604,3215.1,3215.0,40.8]
[1736877676958,6.79159604,3215.1,3215.0,40.8]
[1736877677463,6.48039604,3215.1,3214.5,3.2078]
[1736877677766,0.31123,3214.8,3214.7,0.31123]
[1736877677967,0.31123,3214.8,3214.7,41.11123]
[1736877678165,3.85627622,3214.8,3214.7,41.11123]
[1736877678367,3.85627622,3214.8,3214.7,40.8]
[1736877678870,3.54504622,3214.8,3214.7,41.11124]
[1736877679369,4.11886259,3214.9,3214.8,0.31123]
[1736877679564,0.4927,3214.9,3214.7,40.8]
[1736877679863,3.8542132,3214.9,3214.7,40.8]
[1736877680066,3.8542132,3214.9,3214.8,0.31123]
[1736877680263,1.294,3215.5,3214.5,5.66561314]
[1736877680461,1.294,3215.5,3215.2,0.31118]
[1736877680462,0.31118,3215.3,3215.2,0.31118]
[1736877680661,3.74196248,3215.3,3215.2,41.11118]
[1736877681269,3.74196248,3215.3,3215.2,40.8]
[1736877681471,3.74196248,3215.3,3215.2,41.11119]
[1736877681968,3.74196248,3215.3,3215.2,40.8]
[1736877683272,3.74196248,3215.3,3214.9,0.31121]
[1736877683273,0.31121,3215.0,3214.9,0.31121]
[1736877683464,2.45781314,3215.1,3214.5,3.2078]
[1736877683770,0.31124,3214.8,3214.7,0.31123]
[1736877684170,3.6193238,3214.8,3214.7,41.11123]
[1736877685369,0.31118,3215.4,3215.3,0.31117]
[1736877685771,3.57219982,3215.4,3215.3,0.31117]
[1736877685969,3.57218982,3215.4,3215.3,40.8]
[1736877686173,4.06688982,3215.4,3215.3,40.8]
[1736877686371,4.06688982,3215.4,3215.3,41.11118]
[1736877686871,3.57218982,3215.4,3215.3,41.11118]
[1736877687564,3.57218982,3215.4,3215.3,40.8]
[1736877690776,4.86618982,3215.4,3215.3,40.8]
[1736877691273,0.3112,3215.2,3215.1,0.31119]
[1736877691471,0.482,3215.3,3214.8,3.2078]
[1736877691671,0.80221,3215.1,3215.0,0.3112]
[1736877691867,0.80221,3215.1,3214.9,40.8]
[1736877691868,0.31121,3215.0,3214.9,40.8]
[1736877692174,5.41616977,3215.0,3214.9,40.8]
[1736877692477,5.41616977,3215.0,3214.9,41.11122]
[1736877693173,5.41616977,3215.0,3214.9,40.8]
[1736877693374,0.31127,3214.5,3214.4,0.31125]
[1736877693770,3.71306421,3214.5,3214.4,41.11125]
[1736877694270,6.92086421,3214.5,3214.4,40.8]
[1736877694467,6.60959421,3214.5,3213.7,0.3108]
[1736877694667,0.31131,3214.0,3213.9,0.31131]
[1736877694874,0.31132,3213.9,3213.8,0.31132]
[1736877695075,1.25132,3213.9,3213.8,0.31132]
[1736877695378,4.81770891,3213.9,3213.8,41.11132]
[1736877695572,3.56639891,3213.9,3213.8,41.11132]
[1736877696079,0.4953,3214.6,3214.5,0.31126]
[1736877696375,3.24114677,3214.0,3213.9,0.31131]
[1736877696574,5.69895991,3214.2,3213.8,40.8]
[1736877696777,0.7847,3214.1,3214.0,0.3113]
[1736877696975,0.4734,3214.1,3213.8,40.8]
[1736877697170,0.31131,3213.9,3213.8,41.11132]
[1736877697376,0.31131,3213.9,3213.8,40.8]
[1736877697575,3.55943114,3213.9,3213.8,41.11132]
[1736877697773,7.31124428,3213.9,3213.8,40.8]
[1736877698272,7.31124428,3213.9,3213.8,41.11132]
[1736877698273,3.24812114,3213.9,3213.8,41.11132]
[1736877698471,4.984,3214.7,3214.6,0.31125]
[1736877698670,3.2078,3214.7,3214.6,0.31125]
[1736877699065,3.51904,3214.7,3214.6,41.11125]
[1736877699479,9.46381909,3214.7,3214.6,40.8]
[1736877700673,9.46381909,3214.7,3214.3,0.31127]
[1736877700674,0.31127,3214.4,3214.3,0.31127]
[1736877701071,3.57270047,3214.4,3214.3,41.11127]
[1736877702979,3.57270047,3214.4,3214.3,40.8]
[1736877703376,6.03051361,3214.4,3214.3,40.8]
[1736877703779,6.03051361,3214.4,3213.8,3.2078]
[1736877703780,0.31131,3213.9,3213.8,0.31132]
[1736877703978,0.31135,3213.6,3213.5,0.31135]
[1736877704190,0.31134,3213.7,3213.6,0.31133]
[1736877704482,0.4835,3213.8,3213.7,0.31133]
[1736877704782,3.60750981,3213.8,3213.7,3.2078]
[1736877704989,3.60750981,3213.8,3213.7,3.51913]
[1736877705282,1.294,3213.9,3213.8,0.31132]
[1736877705476,0.4835,3214.3,3214.2,0.31129]
[1736877705680,1.7775,3214.3,3214.2,0.31129]
[1736877705873,5.07649496,3214.3,3214.2,0.31129]
[1736877706078,3.29899496,3214.3,3214.2,0.31129]
[1736877706486,3.29899496,3214.3,3214.1,3.2078]
[1736877706487,0.4835,3214.8,3214.7,0.31124]
[1736877706785,3.52215822,3214.8,3214.7,40.8]
[1736877707085,1.294,3215.1,3214.7,41.11124]
[1736877707380,1.294,3215.1,3215.0,0.31121]
[1736877712391,7.42046679,3215.1,3215.0,0.31121]
[1736877712780,0.31121,3215.0,3214.9,3.2078]
[1736877712995,7.10926679,3215.1,3214.7,0.31123]
[1736877712996,0.31123,3214.8,3214.7,0.31123]
[1736877713196,0.31126,3214.5,3214.4,3.51905]
[1736877713389,2.76907314,3214.5,3214.4,3.51905]
[1736877713688,5.92898698,3214.5,3214.1,40.8]
[1736877713890,0.31128,3214.3,3214.2,0.31128]
[1736877714090,1.60528,3214.3,3214.2,0.31128]
[1736877714293,5.06945863,3214.3,3214.2,0.31128]
[1736877714782,4.75817863,3214.3,3214.1,40.8]
[1736877714983,0.80869,3214.2,3214.1,41.11129]
[1736877715384,5.15720261,3214.2,3214.1,41.11129]
[1736877715584,4.84591261,3214.2,3214.1,41.11129]
[1736877715785,4.34851261,3214.2,3214.1,41.11129]
[1736877716185,1.0638,3214.2,3214.1,41.11129]
[1736877716589,4.39255076,3214.2,3214.1,41.11129]
[1736877718085,0.6089,3214.2,3214.1,41.11129]
[1736877721589,1.7548,3214.9,3214.8,0.31123]
[1736877722382,0.4913,3215.1,3215.0,0.31121]
[1736877723701,0.4913,3215.1,3215.0,41.11121]
[1736877724096,0.8025,3215.1,3215.0,41.11121]
[1736877724296,0.4913,3215.1,3215.0,41.11121]
[1736877724898,3.93874192,3215.1,3214.6,3.2078]
[1736877725099,2.76905314,3214.8,3214.7,0.31123]
[1736877725600,3.44744192,3214.8,3214.7,41.49318495]
[1736877725990,3.48188647,3215.0,3214.7,41.49318495]
[1736877726195,3.79309647,3215.0,3214.9,0.31122]
[1736877726498,0.31121,3215.0,3214.9,0.31122]
[1736877726790,3.79309647,3215.0,3214.9,0.31122]
[1736877727188,3.48188647,3215.0,3214.9,0.31122]
[1736877727591,3.79309647,3215.0,3214.9,0.31122]
[1736877727985,0.31123,3214.8,3214.7,41.11123]
[1736877728196,2.76904314,3214.8,3214.7,40.8]
[1736877728390,6.11672283,3214.8,3214.7,41.11124]
[1736877730095,6.11672283,3214.8,3214.7,40.8]
[1736877730305,6.11672283,3214.8,3214.7,41.11124]
[1736877734004,6.11672283,3214.8,3214.7,40.8]
[1736877734205,0.31126,3214.6,3214.5,0.31124]
[1736877734703,3.83345187,3214.6,3214.5,40.8]
[1736877735002,0.31129,3214.1,3214.0,3.51909]
[1736877735413,0.31129,3214.1,3214.0,40.8]
[1736877735414,6.14482495,3214.1,3214.0,40.8]
[1736877736296,6.14482495,3214.1,3214.0,41.1113]
[1736877736502,3.37572181,3214.1,3214.0,41.1113]
[1736877736794,2.45781314,3215.3,3214.1,0.77824]
[1736877736994,2.76900314,3215.3,3215.2,0.31119]
[1736877737389,6.10924266,3215.3,3215.2,0.31119]
[1736877737596,5.79805266,3215.3,3214.9,3.2078]
[1736877737797,0.31121,3215.1,3215.0,0.3112]
[1736877738202,0.31123,3214.9,3214.8,0.31122]
[1736877738410,2.76904314,3214.9,3214.8,0.31122]
[1736877738705,6.24465337,3214.9,3214.8,0.31122]
[1736877739207,5.93342337,3214.9,3214.8,0.31122]
[1736877739402,5.93342337,3214.9,3214.8,41.11122]
[1736877739600,6.41212337,3214.9,3214.8,41.11122]
[1736877739797,6.41212337,3214.9,3214.8,41.49399994]
[1736877740204,3.95431023,3214.9,3214.8,41.49399994]
[1736877740807,3.95431023,3214.9,3214.8,41.49403838]
[1736877741305,3.47561023,3214.9,3214.8,41.49403838]
[1736877743707,3.78683023,3214.9,3214.8,41.49403838]
[1736877744100,3.47561023,3214.9,3214.8,41.49403838]
[1736877744702,3.78683023,3214.9,3214.8,41.49422976]
[1736877744905,3.47561023,3214.9,3214.8,41.49422976]
[1736877745298,3.47561023,3214.9,3214.8,41.49423939]
[1736877746004,3.78683023,3214.9,3214.8,41.49423939]
[1736877746407,3.47561023,3214.9,3214.8,41.49423939]
[1736877746808,3.47561023,3214.9,3214.8,41.49438674]
[1736877748114,0.4767,3215.2,3215.1,0.3112]
[1736877748320,0.78789,3215.2,3215.1,0.69436674]
[1736877748513,4.27601786,3215.2,3215.1,0.69436674]
[1736877749127,3.96482786,3215.2,3215.1,0.69436674]
[1736877749319,1.294,3216.7,3215.1,7.84097988]
[1736877749519,1.4386,3216.5,3216.1,0.3111]
[1736877749822,1.4386,3216.5,3216.1,0.69387369]
[1736877749823,6.76120948,3216.2,3216.1,0.69387369]
[1736877750122,6.76120948,3216.2,3216.1,41.49387369]
[1736877750324,6.76120948,3216.2,3216.1,40.8]
[1736877750325,7.07229948,3216.2,3216.1,40.8]
[1736877750522,0.77778,3216.1,3215.4,0.31117]
[1736877750829,2.45781314,3215.6,3215.3,0.31117]
[1736877751027,0.31117,3215.4,3215.3,0.31117]
[1736877751232,4.94103336,3215.5,3215.4,0.31117]
[1736877751418,1.3818,3215.5,3215.4,0.69117118]
[1736877751821,4.62987336,3215.5,3215.4,0.69117118]
[1736877752023,4.94103336,3215.5,3215.4,0.69117118]
[1736877752223,4.94103336,3215.5,3215.4,0.31117]
[1736877753223,3.70357336,3215.5,3215.4,0.31117]
[1736877753428,1.294,3215.6,3215.5,0.31116]
[1736877755321,0.4555,3216.1,3216.0,0.31111]
[1736877755827,0.4724,3216.4,3216.3,0.31108]
[1736877756737,0.4724,3216.4,3216.3,41.11108]
[1736877758636,0.31108,3216.3,3216.2,0.31108]
[1736877759133,3.36772172,3216.3,3216.2,0.31108]
[1736877759535,3.67880172,3216.3,3216.2,0.31108]
[1736877759736,4.97180172,3216.3,3216.2,0.31108]
[1736877760124,0.3111,3216.2,3216.1,0.31109]
[1736877760330,0.4637,3216.2,3215.9,40.8]
[1736877760534,0.3111,3216.1,3216.0,0.3111]
[1736877760826,0.31112,3216.0,3215.9,0.31112]
[1736877762730,0.31115,3215.7,3215.6,0.31114]
[1736877762931,0.31115,3215.6,3215.5,3.51895]
[1736877763139,0.9551,3215.6,3215.5,3.51895]
[1736877763436,3.99373718,3215.6,3215.5,3.51895]
[1736877763735,0.77479,3216.2,3216.1,0.3111]
[1736877763937,2.06779,3216.2,3216.1,0.3111]
[1736877764142,5.21039972,3216.2,3216.1,0.3111]
[1736877765139,6.00838972,3216.2,3216.1,0.3111]
[1736877765340,6.00838972,3216.2,3215.8,40.8]
[1736877765341,5.69729972,3216.2,3215.8,40.8]
[1736877765540,0.31112,3216.0,3215.9,0.31111]
[1736877765736,0.31111,3216.1,3216.0,0.3111]
[1736877765940,5.69729972,3216.2,3215.8,40.8]
[1736877766140,3.49678459,3216.0,3215.8,40.8]
[1736877766346,3.80789459,3216.1,3216.0,0.31111]
[1736877766642,0.31111,3216.1,3216.0,0.31111]
[1736877766843,3.80789459,3216.1,3216.0,0.31111]
[1736877770539,3.49678459,3216.1,3216.0,0.31111]
[1736877771043,2.2436,3216.2,3215.9,3.2078]
[1736877771044,0.9506,3216.2,3215.9,3.2078]
[1736877771255,0.4869,3216.2,3216.1,0.3111]
[1736877773148,4.13320793,3216.2,3216.1,0.3111]
[1736877773362,3.82211793,3216.2,3216.1,0.3111]
[1736877774743,4.13320793,3216.2,3216.1,0.3111]
[1736877775045,4.13320793,3216.2,3215.9,3.2078]
[1736877775046,0.31112,3215.9,3215.8,41.11113]
[1736877775246,0.77783,3215.8,3215.4,3.2078]
[1736877775550,2.76623413,3215.5,3215.4,3.2078]
[1736877775740,2.76623413,3215.5,3215.4,44.0078]
[1736877776047,6.00104492,3215.5,3215.4,44.0078]
[1736877776653,6.00104492,3215.5,3215.4,44.31897]
[1736877779844,6.00104492,3215.5,3215.4,44.0078]
[1736877780039,6.00104492,3215.5,3215.4,40.8]
[1736877780246,0.31121,3215.1,3215.0,0.3112]
[1736877780452,3.74807413,3215.1,3215.0,0.3112]
[1736877780653,7.15601777,3215.1,3215.0,41.1112]
[1736877780946,3.40794364,3215.1,3215.0,41.1112]
[1736877781542,0.4789,3215.4,3215.3,0.31118]
[1736877782154,0.4789,3215.4,3215.3,41.11118]
[1736877783744,3.85980985,3215.4,3215.3,41.11118]
[1736877783950,6.31488398,3215.4,3215.3,41.11118]
[1736877784147,6.62605398,3215.4,3215.3,40.8]
[1736877785458,4.17097985,3215.4,3215.3,40.8]
[1736877787258,3.85980985,3215.4,3215.3,40.8]
[1736877787467,3.85980985,3215.4,3215.3,41.11118]
[1736877787864,3.38090985,3215.4,3215.3,44.31898]
[1736877788065,1.293,3215.6,3215.5,0.31116]
[1736877788267,2.6813,3215.8,3215.7,0.31114]
[1736877788558,6.29364135,3215.8,3215.7,0.31114]
[1736877788863,4.59421135,3215.8,3215.7,0.31114]
[1736877789052,3.30121135,3215.8,3215.7,0.31114]
[1736877789254,1.60411,3216.1,3216.0,0.31111]
[1736877789663,4.98049376,3216.1,3216.0,0.31111]
[1736877795859,3.68749376,3216.1,3216.0,0.31111]
[1736877796057,4.98049376,3216.1,3216.0,0.31111]
[1736877799764,4.98049376,3216.1,3215.3,44.0078]
[1736877799765,4.66938376,3216.1,3215.3,44.0078]
[1736877799966,3.28655515,3215.4,3215.3,44.31897]
[1736877800162,0.31111,3216.0,3215.5,0.77789]
[1736877800357,0.949,3216.2,3216.1,0.3111]
[1736877800665,4.33716904,3216.2,3216.1,0.3111]
[1736877801465,4.64825904,3216.2,3216.1,41.1111]
[1736877802365,7.62364419,3216.2,3216.1,40.8]
[1736877802768,7.62364419,3216.2,3216.1,41.1111]
[1736877803266,4.64825904,3216.2,3216.1,41.1111]
[1736877806069,7.85605904,3216.2,3216.1,0.3111]
[1736877806273,0.31113,3215.8,3215.7,3.2078]
[1736877806768,3.32911478,3215.8,3215.7,0.31114]
[1736877807568,6.61063044,3216.2,3215.7,41.11114]
[1736877807767,0.4507,3216.2,3216.1,0.3111]
[1736877807966,2.76490044,3216.5,3215.8,0.311]
[1736877808271,2.76490044,3216.5,3216.3,0.31108]
[1736877808272,2.08587,3216.4,3216.3,0.31108]
[1736877808471,3.65860522,3216.3,3216.2,0.31108]
[1736877808873,0.31109,3216.3,3216.2,0.31108]
[1736877809070,3.58015912,3216.3,3216.2,0.31108]
[1736877809269,3.26906912,3216.3,3216.2,0.31108]
[1736877809668,1.7839,3216.6,3216.5,0.31106]
[1736877809875,0.4909,3216.6,3216.5,0.31106]
[1736877810073,2.91361439,3216.4,3216.3,2.76491044]
[1736877810369,1.4618,3217.5,3217.4,0.31098]
[1736877810876,0.31098,3217.4,3217.3,0.31098]
[1736877811468,3.77521149,3217.4,3217.3,40.8]
[1736877812365,3.77521149,3217.4,3217.3,41.11099]
[1736877812366,5.06821149,3217.4,3217.3,41.11099]
[1736877812867,4.75723149,3217.4,3217.3,41.11099]
[1736877813270,3.46423149,3217.4,3217.3,41.11099]
[1736877814576,3.91563044,3217.5,3217.3,40.8]
[1736877814869,3.91563044,3217.5,3217.4,0.31098]
[1736877815276,0.4976,3217.5,3217.4,0.31098]
[1736877815883,0.80857,3217.5,3217.4,0.31098]
[1736877816078,4.41377043,3217.5,3217.4,0.31098]
[1736877816677,0.31098,3217.4,3217.3,0.31099]
[1736877816879,3.22701044,3217.4,3217.3,0.31099]
[1736877817174,8.12521087,3217.4,3217.3,0.31099]
[1736877817572,7.81423087,3217.4,3217.3,0.31099]
[1736877817773,4.06740043,3217.4,3217.3,0.31099]
[1736877817976,0.4622,3217.4,3217.3,0.31099]
[1736877818573,0.4622,3217.4,3217.3,41.11099]
[1736877818885,0.77318,3217.4,3217.3,41.11099]
[1736877819674,6.20315615,3217.4,3217.3,41.11099]
[1736877819885,6.66035615,3217.4,3217.3,41.11099]
[1736877820079,6.97133615,3217.4,3217.3,0.31099]
[1736877820376,6.66035615,3217.4,3217.3,0.31099]
[1736877820583,6.66035615,3217.4,3217.3,41.11099]
[1736877820783,6.97133615,3217.4,3217.3,41.11099]
[1736877822185,6.66035615,3217.4,3217.3,41.11099]
[1736877822785,4.20652571,3217.4,3217.3,41.11099]
[1736877822983,3.74932571,3217.4,3217.3,41.11099]
[1736877823386,3.28712571,3217.4,3217.3,44.31879]
[1736877823686,1.7604,3217.7,3217.6,0.31096]
[1736877824077,5.22153171,3217.7,3217.6,0.31096]
[1736877824586,0.31097,3217.5,3217.4,0.31096]
[1736877824886,2.76480044,3217.5,3217.4,0.31096]
[1736877825084,6.05370264,3217.5,3217.4,0.31096]
[1736877825486,3.5998722,3217.5,3217.4,0.31096]
[1736877826088,6.05370264,3217.5,3217.4,0.31096]
[1736877833186,5.74273264,3217.5,3217.4,0.31096]
[1736877833688,0.4684,3217.7,3217.6,0.31096]
[1736877834083,3.82728262,3217.7,3217.6,0.31096]